bitfinex/quotes_SOLUSD_20250424
["timestamp","ask_amount","ask_price","bid_price","bid_amount"]
[1745509593854,14.99597895,149.68,149.65,0.043]
[1745509594071,14.99597895,149.67,149.65,0.043]
[1745509594652,6.68091988,149.68,149.65,0.043]
[1745509594837,21.67689883,149.68,149.65,0.043]
[1745509595034,6.68091988,149.68,149.65,0.043]
[1745509595242,14.99597895,149.67,149.65,0.043]
[1745509595551,21.67742507,149.67,149.65,0.043]
[1745509596654,46.86067665,149.69,149.65,0.043]
[1745509597028,29.17597895,149.69,149.65,15.03897895]
[1745509597240,14.18,149.69,149.66,14.99597895]
[1745509597538,14.18,149.69,149.67,14.99597895]
[1745509597742,21.67539945,149.72,149.67,14.99597895]
[1745509597958,14.99597895,149.72,149.68,14.99597895]
[1745509598140,14.99597895,149.72,149.67,14.99597895]
[1745509598346,14.99597895,149.7,149.66,16.63667895]
[1745509598547,14.99597895,149.7,149.66,23.3183552]
[1745509598868,14.99597895,149.71,149.66,23.3183552]
[1745509599068,14.18,149.73,149.68,14.99597895]
[1745509599271,237.61597895,149.75,149.7,14.99597895]
[1745509599568,237.61597895,149.75,149.71,14.99597895]
[1745509600270,237.61597895,149.75,149.7,21.67568322]
[1745509600455,14.99597895,149.74,149.7,21.67568322]
[1745509600852,14.99597895,149.74,149.69,14.99597895]
[1745509601058,14.99597895,149.71,149.66,16.63667895]
[1745509601747,14.99597895,149.7,149.66,1.6407]
[1745509602253,14.99597895,149.71,149.66,23.31833933]
[1745509602654,14.99597895,149.72,149.68,14.99597895]
[1745509603064,14.99597895,149.72,149.66,8.32236038]
[1745509603065,14.99597895,149.71,149.67,14.99597895]
[1745509603258,14.99597895,149.72,149.67,14.99597895]
[1745509603786,222.62,149.75,149.7,14.99597895]
[1745509603953,14.18,149.75,149.71,14.99597895]
[1745509604148,14.18,149.75,149.72,14.99597895]
[1745509604959,14.99597895,149.77,149.72,14.99597895]
[1745509605566,30.64443433,149.78,149.73,23.96797553]
[1745509605889,14.18,149.79,149.74,23.96797553]
[1745509606059,44.82402831,149.79,149.75,23.96797553]
[1745509606259,44.82402831,149.79,149.74,23.96797553]
[1745509606461,23.96797553,149.78,149.73,23.96797553]
[1745509607158,23.96797553,149.76,149.72,1.5562]
[1745509607794,20.85605278,149.79,149.7,23.96797553]
[1745509607795,23.96797553,149.74,149.7,23.96797553]
[1745509607994,23.96797553,149.75,149.7,23.96797553]
[1745509609895,30.64594528,149.75,149.7,23.96797553]
[1745509611500,23.96797553,149.74,149.7,23.96797553]
[1745509612509,30.64644353,149.74,149.7,23.96797553]
[1745509612813,23.96797553,149.71,149.65,25.37475236]
[1745509613016,23.96797553,149.69,149.65,6.7251035]
[1745509613511,23.96797553,149.71,149.67,23.96797553]
[1745509613988,23.96797553,149.73,149.68,23.96797553]
[1745509614184,44.80644353,149.74,149.69,23.96797553]
[1745509614518,23.96797553,149.73,149.69,23.96797553]
[1745509615216,44.80644353,149.74,149.69,30.64838586]
[1745509615381,38.12797553,149.74,149.69,30.64838586]
[1745509615577,23.96797553,149.76,149.72,23.96797553]
[1745509615884,23.96797553,149.79,149.75,23.96797553]
[1745509616076,0.03,149.77,149.75,23.96797553]
[1745509616478,0.03,149.77,149.74,23.96797553]
[1745509616710,23.99797553,149.77,149.72,30.64670075]
[1745509616909,23.99797553,149.77,149.72,23.96797553]
[1745509617289,23.99797553,149.77,149.72,30.64704554]
[1745509617815,23.99797553,149.77,149.72,23.96797553]
[1745509618513,6.67735042,149.76,149.72,23.96797553]
[1745509618806,23.96797553,149.75,149.71,25.55837553]
[1745509619020,30.64532595,149.76,149.71,25.55837553]
[1745509619199,23.96797553,149.76,149.72,23.96797553]
[1745509619387,30.67502172,149.77,149.72,23.96797553]
[1745509619587,0.03,149.77,149.74,23.96797553]
[1745509619815,0.03,149.77,149.73,23.96797553]
[1745509621084,23.96797553,149.76,149.72,23.96797553]
[1745509621288,23.96797553,149.76,149.71,25.55837553]
[1745509622087,23.96797553,149.75,149.71,25.55837553]
[1745509622706,30.64578686,149.75,149.71,1.5904]
[1745509622912,30.64578686,149.75,149.71,25.55837553]
[1745509623111,23.96797553,149.76,149.71,25.55837553]
[1745509623419,0.03,149.77,149.73,23.96797553]
[1745509624410,0.03,149.77,149.74,23.96797553]
[1745509624586,0.03,149.77,149.73,23.96797553]
[1745509624993,23.99797553,149.77,149.72,23.96797553]
[1745509625179,23.96797553,149.76,149.71,32.23778544]
[1745509625612,0.03,149.77,149.71,32.23778544]
[1745509625613,23.96797553,149.75,149.71,1.5904]
[1745509626217,0.03,149.77,149.71,1.5904]
[1745509626218,23.96797553,149.76,149.71,32.23784283]
[1745509626400,23.96797553,149.76,149.72,23.96797553]
[1745509626923,30.64532944,149.76,149.72,23.96797553]
[1745509627081,30.64532944,149.76,149.71,1.5904]
[1745509627384,14.98866799,149.73,149.69,14.98866799]
[1745509627582,14.98866799,149.74,149.7,14.98866799]
[1745509628714,14.98866799,149.75,149.7,14.98866799]
[1745509628912,14.98866799,149.74,149.7,14.98866799]
[1745509629119,14.98866799,149.74,149.69,21.66877469]
[1745509629310,14.98866799,149.74,149.7,14.98866799]
[1745509629622,14.98866799,149.75,149.7,14.98866799]
[1745509630026,14.98866799,149.74,149.7,14.98866799]
[1745509630399,14.98866799,149.74,149.69,14.98866799]
[1745509630616,21.66708463,149.74,149.69,21.66910422]
[1745509631015,14.98866799,149.74,149.69,21.66910422]
[1745509631318,14.98866799,149.73,149.68,21.66939321]
[1745509632621,14.98866799,149.73,149.69,14.98866799]
[1745509632795,14.98866799,149.73,149.69,21.66908556]
[1745509632998,14.98866799,149.73,149.69,14.98866799]
[1745509633694,14.98866799,149.72,149.68,14.98866799]
[1745509633900,14.98866799,149.73,149.69,14.98866799]
[1745509634106,21.66658511,149.75,149.7,14.98866799]
[1745509634411,40.16,149.76,149.68,6.68063291]
[1745509634412,14.16,149.76,149.73,14.98866799]
[1745509634608,14.16,149.76,149.74,14.98866799]
[1745509635103,0.03,149.77,149.74,21.66689895]
[1745509635311,0.03,149.77,149.74,14.98866799]
[1745509635922,0.03,149.77,149.74,21.66686399]
[1745509636623,0.03,149.77,149.76,14.98866799]
[1745509636814,0.03,149.77,149.76,21.66601841]
[1745509638621,0.03,149.77,149.76,14.98866799]
[1745509639158,0.03,149.77,149.75,14.98866799]
[1745509639313,0.03,149.77,149.74,1.6293]
[1745509639507,0.03,149.77,149.75,14.98866799]
[1745509639812,0.03,149.77,149.75,21.66631649]
[1745509640213,0.03,149.77,149.76,14.98866799]
[1745509640828,14.8413953,149.8,149.75,14.98866799]
[1745509641130,21.66399597,149.81,149.76,14.98866799]
[1745509641428,14.98866799,149.8,149.76,14.98866799]
[1745509641731,14.98866799,149.77,149.71,14.98866799]
[1745509641937,14.98866799,149.76,149.71,21.66789944]
[1745509642723,14.98866799,149.74,149.7,1.5295]
[1745509642934,14.98866799,149.73,149.7,1.5295]
[1745509643139,14.98866799,149.73,149.68,21.66938867]
[1745509644041,14.98866799,149.72,149.68,21.66938867]
[1745509644420,14.98866799,149.73,149.68,21.66938867]
[1745509645359,6.67735042,149.76,149.69,14.98866799]
[1745509645557,14.98866799,149.74,149.7,14.98866799]
[1745509646817,14.98866799,149.72,149.67,21.66990353]
[1745509647830,21.66769312,149.73,149.68,14.98866799]
[1745509648159,14.98866799,149.74,149.69,14.98866799]
[1745509648337,14.98866799,149.75,149.7,14.98866799]
[1745509648726,14.98866799,149.74,149.7,14.98866799]
[1745509649328,14.98866799,149.74,149.7,21.66868002]
[1745509650521,14.98866799,149.76,149.71,14.98866799]
[1745509650723,14.98866799,149.76,149.72,14.98866799]
[1745509651249,29.14866799,149.77,149.72,14.98866799]
[1745509651728,29.14866799,149.77,149.73,14.98866799]
[1745509652530,14.16,149.77,149.74,14.98866799]
[1745509652732,14.16,149.77,149.75,14.98866799]
[1745509653229,20.83519735,149.81,149.76,14.98866799]
[1745509653558,14.98866799,149.8,149.75,14.98866799]
[1745509653723,14.98866799,149.79,149.75,14.98866799]
[1745509654240,14.98866799,149.77,149.72,23.30491611]
[1745509654438,14.98866799,149.78,149.73,21.66710741]
[1745509654948,14.98866799,149.8,149.75,14.98866799]
[1745509655143,14.16000001,149.81,149.77,14.98866799]
[1745509655347,20.83519952,149.81,149.77,14.98866799]
[1745509655730,14.98866799,149.8,149.76,14.98866799]
[1745509656035,14.98866799,149.8,149.75,14.98866799]
[1745509656541,14.98866799,149.8,149.75,21.66626116]
[1745509656747,14.98866799,149.78,149.73,6.6786883]
[1745509656960,14.98866799,149.8,149.76,14.98866799]
[1745509657462,29.148668,149.81,149.77,14.98866799]
[1745509658166,35.82379543,149.81,149.77,14.98866799]
[1745509658328,35.82379543,149.81,149.76,14.98866799]
[1745509658528,29.148668,149.81,149.76,14.98866799]
[1745509658863,35.82382909,149.81,149.77,14.98866799]
[1745509659357,35.82382909,149.81,149.76,14.98866799]
[1745509660028,29.148668,149.81,149.76,21.66591878]
[1745509660259,14.16000001,149.81,149.77,14.98866799]
[1745509660733,14.16000001,149.81,149.78,14.98866799]
[1745509661954,14.16000001,149.81,149.8,14.98866799]
[1745509662133,1e-08,149.81,149.8,14.98866799]
[1745509665061,1e-08,149.81,149.8,21.66423541]
[1745509665638,1e-08,149.81,149.8,14.98866799]
[1745509666141,1e-08,149.81,149.78,16.64626799]
[1745509666570,1e-08,149.81,149.79,14.98866799]
[1745509668573,1e-08,149.81,149.8,14.98866799]
[1745509669647,1e-08,149.81,149.8,21.66423541]
[1745509669847,1e-08,149.81,149.8,55.44471383]
[1745509670048,0.03,149.82,149.81,18.79181043]
[1745509670350,0.03,149.83,149.81,59.78047842]
[1745509670556,0.03,149.84,149.83,18.79181043]
[1745509670854,0.03,149.84,149.83,33.78047842]
[1745509672150,0.03,149.84,149.83,40.45470921]
[1745509672345,0.03,149.86,149.83,57.14028619]
[1745509672538,0.03,149.86,149.85,40.98866799]
[1745509673054,0.03,149.86,149.83,6.67423079]
[1745509673250,0.03,149.86,149.84,14.98866799]
[1745509674158,0.03,149.86,149.84,21.66240454]
[1745509674470,0.03,149.86,149.84,14.98866799]
[1745509675068,0.03,149.86,149.84,21.66241572]
[1745509675768,0.03,149.86,149.85,14.98866799]
[1745509676168,0.03,149.86,149.84,14.98866799]
[1745509676349,0.03,149.86,149.83,21.66289878]
[1745509676771,0.03,149.86,149.84,14.98866799]
[1745509677766,0.03,149.86,149.82,21.66316869]
[1745509678070,15.01866799,149.86,149.82,21.66316869]
[1745509678457,0.03,149.86,149.83,14.98866799]
[1745509680050,0.03,149.86,149.84,14.98866799]
[1745509680249,0.03,149.86,149.84,21.66241008]
[1745509680441,0.03,149.86,149.85,14.98866799]
[1745509681998,0.03,149.91,149.88,64.68964886]
[1745509682146,0.03,149.95,149.91,80.86484641]
[1745509682477,0.03,149.96,149.94,81.43848081]
[1745509682648,0.03,150.01,150.0,48.76914641]
[1745509683174,0.03,150.01,150.0,29.97733598]
[1745509683377,0.03,150.01,150.0,14.98866799]
[1745509685186,0.03,150.01,149.98,14.98866799]
[1745509685347,0.03,150.01,149.98,23.89019318]
[1745509686974,0.03,150.01,149.95,1.5021]
[1745509687150,0.03,150.01,149.97,23.89019318]
[1745509687352,23.89019318,150.0,149.95,23.89019318]
[1745509687672,23.89019318,149.99,149.94,23.89019318]
[1745509688565,23.89019318,150.0,149.95,23.89019318]
[1745509688880,23.89019318,149.96,149.88,18.64964886]
[1745509689092,23.89019318,149.95,149.9,23.89019318]
[1745509689553,23.89019318,149.95,149.88,26.0]
[1745509689757,23.89019318,149.95,149.91,23.89019318]
[1745509689957,23.89019318,149.96,149.91,23.89019318]
[1745509690991,30.5585103,149.97,149.92,23.89019318]
[1745509691300,14.14,149.98,149.96,23.89019318]
[1745509691464,14.14,149.98,149.95,23.89019318]
[1745509692361,14.14,149.98,149.96,23.89019318]
[1745509692960,14.14,149.98,149.94,23.89019318]
[1745509692961,20.80756325,149.98,149.94,23.89019318]
[1745509693399,44.69775643,149.98,149.89,18.79181043]
[1745509693687,44.69775643,149.98,149.94,23.89019318]
[1745509693995,23.89019318,149.95,149.91,23.89019318]
[1745509694197,23.89019318,149.95,149.9,23.89019318]
[1745509694362,23.89019318,149.95,149.91,23.89019318]
[1745509694775,23.89019318,149.92,149.87,1.5617]
[1745509695099,23.89019318,149.91,149.86,23.89019318]
[1745509695810,23.89019318,149.92,149.88,23.89019318]
[1745509696315,23.89019318,149.93,149.88,23.89019318]
[1745509697015,6.67022411,149.92,149.88,23.89019318]
[1745509697309,26.0,149.97,149.91,23.89019318]
[1745509697310,6.66946538,149.94,149.91,23.89019318]
[1745509697685,30.55965856,149.94,149.89,23.89019318]
[1745509697883,47.23299456,149.94,149.89,23.89019318]
[1745509698314,47.23299456,149.94,149.84,58.93181043]
[1745509698504,23.89019318,149.91,149.84,26.0]
[1745509698708,14.14,149.93,149.85,23.89019318]
[1745509698709,23.89019318,149.9,149.85,23.89019318]
[1745509698894,6.67200427,149.88,149.84,23.89019318]
[1745509699081,6.67200427,149.88,149.83,7.8659]
[1745509699082,23.89019318,149.85,149.79,1.7017]
[1745509699281,23.89019318,149.83,149.79,0.063]
[1745509699712,23.89019318,149.82,149.79,0.063]
[1745509700113,26.0,149.85,149.79,0.063]
[1745509700114,23.89019318,149.83,149.79,0.063]
[1745509700315,23.89019318,149.84,149.79,23.95319318]
[1745509700516,23.89019318,149.83,149.79,0.063]
[1745509701203,30.56453014,149.83,149.79,0.063]
[1745509701616,23.89019318,149.84,149.79,23.95319318]
[1745509701818,49.89019318,149.85,149.8,23.89019318]
[1745509701988,23.89019318,149.82,149.79,0.063]
[1745509702179,23.89019318,149.81,149.79,0.063]
[1745509702411,23.89019318,149.83,149.79,0.063]
[1745509702713,23.89019318,149.84,149.79,23.95319318]
[1745509702895,23.89019318,149.83,149.79,0.063]
[1745509703314,30.56451086,149.83,149.79,0.063]
[1745509703521,23.89019318,149.82,149.79,0.063]
[1745509703932,6.67431768,149.83,149.79,0.063]
[1745509704105,23.89019318,149.82,149.79,0.063]
[1745509704633,23.89019318,149.83,149.79,0.063]
[1745509705139,49.89019318,149.85,149.8,23.89019318]
[1745509705439,23.89019318,149.84,149.79,23.95319318]
[1745509705603,23.89019318,149.83,149.79,23.95319318]
[1745509706324,23.89019318,149.83,149.79,0.063]
[1745509707110,23.89019318,149.82,149.79,0.063]
[1745509707313,30.56478029,149.83,149.79,0.063]
[1745509707632,23.89019318,149.82,149.79,0.063]
[1745509709034,23.89019318,149.81,149.79,0.063]
[1745509709435,30.565351,149.81,149.79,0.063]
[1745509709735,30.56504965,149.82,149.79,0.063]
[1745509709934,44.70454092,149.83,149.79,0.063]
[1745509710132,38.03019318,149.83,149.79,23.95319318]
[1745509710520,44.70442685,149.83,149.79,23.95319318]
[1745509711541,44.70442685,149.83,149.79,0.063]
[1745509712425,23.89019318,149.82,149.79,0.063]
[1745509713333,30.56495588,149.82,149.79,0.063]
[1745509714747,23.89019318,149.81,149.79,0.063]
[1745509715447,30.5657606,149.8,149.79,0.063]
[1745509716233,30.56548649,149.81,149.79,0.063]
[1745509716429,44.70486084,149.83,149.79,0.063]
[1745509717927,23.89019318,149.82,149.79,0.063]
[1745509718654,23.89019318,149.8,149.79,0.063]
[1745509719855,30.5657606,149.8,149.79,0.063]
[1745509720935,54.45595378,149.8,149.79,0.063]
[1745509721323,30.5657606,149.8,149.79,0.063]
[1745509722331,73.24776421,149.8,149.79,0.063]
[1745509723557,26.0,149.77,149.74,0.063]
[1745509723852,23.89019318,149.75,149.74,0.063]
[1745509724147,30.5679895,149.75,149.74,0.063]
[1745509725049,70.70725945,149.77,149.74,0.063]
[1745509726750,64.03019318,149.77,149.74,0.063]
[1745509727055,46.81706725,149.77,149.74,0.063]
[1745509727227,70.70726043,149.77,149.74,0.063]
[1745509727430,23.89019318,149.76,149.74,0.063]
[1745509728545,46.81706725,149.77,149.74,0.063]
[1745509729060,70.70726043,149.77,149.74,0.063]
[1745509730565,30.5679895,149.75,149.74,0.063]
[1745509731743,30.56764691,149.76,149.74,0.063]
[1745509732055,23.89019318,149.75,149.74,0.063]
[1745509732560,30.5679895,149.75,149.74,0.063]
[1745509734362,20.8170906,149.77,149.74,0.063]
[1745509734567,23.89019318,149.8,149.76,23.89019318]
[1745509734766,6.67378537,149.84,149.74,14.88978826]
[1745509734939,6.67200427,149.88,149.83,23.89019318]
[1745509735141,23.89019318,149.87,149.82,23.89019318]
[1745509735438,6.66977923,149.93,149.86,23.89019318]
[1745509735638,0.03,149.94,149.92,16.53660755]
[1745509735845,0.03,149.94,149.89,31.25214156]
[1745509736078,0.03,149.94,149.88,18.79181043]
[1745509736243,0.03,149.94,149.91,14.94250755]
[1745509736437,0.03,149.94,149.88,18.79181043]
[1745509736438,0.03,149.94,149.92,14.94250755]
[1745509736638,14.97250755,149.94,149.87,6.67244945]
[1745509736870,14.94250755,149.92,149.87,14.94250755]
[1745509737074,14.94250755,149.91,149.86,16.53660755]
[1745509737234,14.94250755,149.92,149.86,1.5941]
[1745509737440,26.0,149.93,149.86,16.53660755]
[1745509737441,14.94250755,149.91,149.86,16.53660755]
[1745509737868,14.94250755,149.9,149.86,1.5941]
[1745509738075,23.93899784,149.87,149.81,6.67512182]
[1745509738374,23.93899784,149.85,149.81,6.67512182]
[1745509738538,23.93899784,149.85,149.8,8.29478444]
[1745509738738,23.93899784,149.84,149.8,1.6193]
[1745509738937,44.79181043,149.89,149.81,23.93899784]
[1745509739167,23.93899784,149.86,149.81,23.93899784]
[1745509739367,32.67157202,149.89,149.82,23.93899784]
[1745509739539,23.93899784,149.87,149.82,23.93899784]
[1745509739741,23.93899784,149.86,149.81,23.93899784]
[1745509740362,26.0,149.89,149.84,23.93899784]
[1745509740669,23.93899784,149.88,149.83,23.93899784]
[1745509740969,26.0,149.89,149.84,23.93899784]
[1745509741267,49.93899784,149.89,149.84,23.93899784]
[1745509741471,23.93899784,149.87,149.82,23.93899784]
[1745509741758,23.93899784,149.88,149.83,23.93899784]
[1745509741954,32.67162097,149.89,149.82,23.93899784]
[1745509741955,23.93899784,149.87,149.82,23.93899784]
[1745509742151,23.93899784,149.85,149.8,1.6193]
[1745509742355,23.93899784,149.85,149.8,23.93899784]
[1745509742564,23.93899784,149.84,149.79,23.93899784]
[1745509742769,23.93899784,149.84,149.8,23.93899784]
[1745509744242,6.67337633,149.85,149.8,23.93899784]
[1745509744444,30.61237417,149.85,149.8,23.93899784]
[1745509745953,56.6120085,149.86,149.81,23.93899784]
[1745509746151,23.93899784,149.85,149.81,23.93899784]
[1745509746354,32.67301066,149.86,149.77,6.188]
[1745509746355,30.61318153,149.84,149.77,12.86477875]
[1745509746556,30.61318153,149.84,149.79,23.93899784]
[1745509746853,23.93899784,149.83,149.78,23.93899784]
[1745509747254,30.61318153,149.84,149.79,23.93899784]
[1745509748160,26.0,149.84,149.8,23.93899784]
[1745509748363,56.61200831,149.86,149.81,23.93899784]
[1745509748549,23.93899784,149.88,149.83,23.93899784]
[1745509748756,23.93899784,149.87,149.82,23.93899784]
[1745509748955,23.93899784,149.86,149.82,23.93899784]
[1745509749270,23.93899784,149.86,149.81,23.93899784]
[1745509749464,23.93899784,149.85,149.8,23.93899784]
[1745509749971,23.93899784,149.86,149.81,23.93899784]
[1745509750349,30.6122513,149.86,149.81,23.93899784]
[1745509750565,23.93899784,149.84,149.79,23.93899784]
[1745509750863,23.93899784,149.84,149.77,6.188]
[1745509751169,23.93899784,149.81,149.75,12.03595998]
[1745509751465,23.93899784,149.8,149.75,32.21648357]
[1745509751653,26.0,149.83,149.75,32.21648357]
[1745509751654,23.93899784,149.81,149.76,23.93899784]
[1745509752176,23.93899784,149.8,149.75,32.21622905]
[1745509752373,23.93899784,149.8,149.75,25.53869784]
[1745509752863,23.93899784,149.79,149.75,25.53869784]
[1745509753564,23.93899784,149.79,149.75,1.5997]
[1745509753757,23.93899784,149.78,149.74,0.063]
[1745509753960,23.93899784,149.77,149.74,0.063]
[1745509754178,23.93899784,149.76,149.74,0.063]
[1745509754481,30.61556582,149.78,149.74,0.063]
[1745509754651,23.93899784,149.75,149.74,0.063]
[1745509754851,23.93899784,149.76,149.74,0.063]
[1745509755358,23.93899784,149.75,149.74,0.063]
[1745509755862,82.7086467,149.75,149.74,0.063]
[1745509756060,56.7086467,149.75,149.74,0.063]
[1745509756275,80.64764454,149.75,149.74,0.063]
[1745509756569,44.64964886,149.71,149.7,0.063]
[1745509756747,68.5886467,149.71,149.7,0.063]
[1745509757370,68.73080827,149.71,149.7,0.063]
[1745509758554,75.41038879,149.71,149.7,0.063]
[1745509758872,75.41038879,149.71,149.7,1e-08]
[1745509761156,51.47139095,149.71,149.7,1e-08]
[1745509761353,75.41038879,149.71,149.7,1e-08]
[1745509762450,49.93899784,149.71,149.7,1e-08]
[1745509762651,23.93899784,149.71,149.7,1e-08]
[1745509763175,25.32827537,149.74,149.7,1e-08]
[1745509763371,23.93899784,149.72,149.7,1e-08]
[1745509763580,23.93899784,149.71,149.7,1e-08]
[1745509763872,49.41038879,149.71,149.7,1e-08]
[1745509764063,75.41038879,149.71,149.7,1e-08]
[1745509764678,49.93899784,149.71,149.7,1e-08]
[1745509765462,23.93899784,149.71,149.7,1e-08]
[1745509766187,49.93899784,149.72,149.7,1e-08]
[1745509766381,23.93899784,149.71,149.7,1e-08]
[1745509768358,30.61857836,149.71,149.7,1e-08]
[1745509769678,23.93899784,149.71,149.7,1e-08]
[1745509770284,14.12,149.75,149.7,1e-08]
[1745509770584,68.5886467,149.71,149.7,1e-08]
[1745509770777,68.73080827,149.71,149.7,1e-08]
[1745509771570,23.37392686,149.74,149.7,1e-08]
[1745509771757,30.61857836,149.71,149.7,1e-08]
[1745509772079,49.41038879,149.71,149.7,1e-08]
[1745509778179,75.41038879,149.71,149.7,1e-08]
[1745509778490,49.41038879,149.71,149.7,1e-08]
[1745509778869,90.05038879,149.71,149.7,1e-08]
[1745509779072,71.25857836,149.71,149.7,1e-08]
[1745509779898,90.05038879,149.71,149.7,1e-08]
[1745509781274,64.05038879,149.71,149.7,1e-08]
[1745509785290,55.1150112,149.71,149.7,1e-08]
[1745509789078,54.97284963,149.71,149.7,1e-08]
[1745509789502,55.1150112,149.71,149.7,1e-08]
[1745509790392,81.1150112,149.71,149.7,1e-08]
[1745509792279,55.1150112,149.71,149.7,1e-08]
[1745509796305,80.97284963,149.71,149.7,1e-08]
[1745509796606,81.1150112,149.71,149.7,1e-08]
[1745509797212,62.32320077,149.71,149.7,1e-08]
[1745509797383,47.31958052,149.71,149.7,1e-08]
[1745509797681,36.32320077,149.71,149.7,1e-08]
[1745509798187,62.32320077,149.71,149.7,1e-08]
[1745509799388,47.31958052,149.71,149.7,1e-08]
[1745509799584,62.32320077,149.71,149.7,1e-08]
[1745509801004,81.1150112,149.71,149.7,1e-08]
[1745509803707,55.1150112,149.71,149.7,1e-08]
[1745509807604,55.1150112,149.71,149.65,0.043]
[1745509807605,44.64964886,149.68,149.65,0.043]
[1745509807809,74.79905093,149.66,149.65,0.043]
[1745509808049,48.79905093,149.66,149.65,0.043]
[1745509808905,48.79905093,149.66,149.64,0.063]
[1745509809104,29.46362025,149.65,149.64,0.063]
[1745509809816,54.93768928,149.65,149.64,1e-08]
[1745509810127,18.79181043,149.64,149.63,1e-08]
[1745509810324,33.79543068,149.64,149.63,1e-08]
[1745509811900,40.47813583,149.64,149.63,1e-08]
[1745509812304,40.33597426,149.64,149.63,1e-08]
[1745509812730,40.47813583,149.64,149.63,1e-08]
[1745509813531,44.64964886,149.62,149.61,0.063]
[1745509813835,66.47902912,149.62,149.61,0.063]
[1745509815013,32.68359844,149.62,149.61,0.063]
[1745509815322,21.68721869,149.62,149.61,0.063]
[1745509815633,47.68721869,149.62,149.61,0.063]
[1745509817433,66.47902912,149.62,149.61,0.063]
[1745509817623,40.47902912,149.62,149.61,0.063]
[1745509819235,18.64964886,149.6,149.59,0.063]
[1745509819446,48.25543068,149.6,149.59,0.063]
[1745509820632,74.25543068,149.6,149.59,0.063]
[1745509820920,80.93992265,149.6,149.59,0.063]
[1745509821541,62.14811222,149.6,149.59,0.063]
[1745509822316,80.93992265,149.6,149.59,0.063]
[1745509825225,69.9435429,149.6,149.59,0.063]
[1745509825738,54.93992265,149.6,149.59,0.063]
[1745509826545,80.93992265,149.6,149.59,0.063]
[1745509827324,51.29389404,149.6,149.59,1e-08]
[1745509828161,36.29027379,149.6,149.59,1e-08]
[1745509829057,26.0,149.57,149.56,0.063]
[1745509829352,26.0,149.57,149.56,1e-08]
[1745509829353,47.83161454,149.57,149.56,1e-08]
[1745509831459,32.68583272,149.57,149.56,1e-08]
[1745509831639,47.68945297,149.57,149.56,1e-08]
[1745509832550,47.83161454,149.57,149.56,1e-08]
[1745509835662,32.68583272,149.57,149.56,1e-08]
[1745509835966,47.83161454,149.57,149.56,1e-08]
[1745509837557,47.65603872,149.57,149.56,1e-08]
[1745509838364,0.14216157,149.56,149.55,1e-08]
[1745509838653,15.14578182,149.56,149.55,1e-08]
[1745509839827,21.83206157,149.56,149.55,1e-08]
[1745509840229,40.48171043,149.56,149.55,1e-08]
[1745509840664,26.0,149.53,149.5,10.7735]
[1745509840958,15.00362025,149.51,149.5,9.213]
[1745509841149,15.14578182,149.51,149.5,9.213]
[1745509841360,41.14578182,149.51,149.5,9.213]
[1745509841851,47.83429763,149.51,149.5,9.213]
[1745509842455,0.14216157,149.47,149.46,1.5311]
[1745509842657,29.48578182,149.47,149.46,1.5311]
[1745509843044,29.48578182,149.47,149.42,1.5]
[1745509843358,15.00362025,149.44,149.42,1.5]
[1745509844165,0.14216157,149.44,149.42,1.5]
[1745509844367,15.00362025,149.43,149.37,8.23583719]
[1745509844653,15.00362025,149.42,149.38,15.00362025]
[1745509844869,15.14578182,149.44,149.4,15.00362025]
[1745509845166,0.14216157,149.44,149.4,15.00362025]
[1745509846362,15.00362025,149.41,149.37,1.5414]
[1745509846557,6.69170571,149.44,149.39,15.00362025]
[1745509846861,0.14216157,149.42,149.37,1.5414]
[1745509847058,15.00362025,149.44,149.4,15.00362025]
[1745509847358,41.00362025,149.45,149.4,15.00362025]
[1745509847736,15.00362025,149.43,149.39,15.00362025]
[1745509848256,15.00362025,149.44,149.39,6.69368571]
[1745509848449,15.00362025,149.44,149.39,21.69730596]
[1745509848977,15.00362025,149.44,149.4,15.00362025]
[1745509849156,41.00362025,149.45,149.41,15.00362025]
[1745509849364,41.00362025,149.45,149.4,15.00362025]
[1745509849560,15.14578182,149.44,149.39,6.69368571]
[1745509849873,15.14578182,149.44,149.4,15.00362025]
[1745509850376,21.83753583,149.44,149.4,15.00362025]
[1745509850765,41.00362025,149.45,149.41,15.00362025]
[1745509851759,29.34362025,149.47,149.42,15.00362025]
[1745509851965,15.00362025,149.46,149.41,15.00362025]
[1745509852267,15.00362025,149.46,149.41,21.69641958]